[Event "DVM U12 2019"]
[Site "Magedburg"]
[Date "2019.12.27"]
[Round "1"]
[White "Monninkhoff, Yari"]
[Black "Kiefhaber, Tobias"]
[Result "*"]
[ECO "B15"]
[WhiteElo "1272"]
[BlackElo "1483"]
[Annotator "NA RC"]
[PlyCount "62"]
[EventDate "2019.12.27"]
[EventType "team-tourn"]
[EventRounds "7"]
[EventCountry "GER"]
[SourceTitle "playchess.com"]
[Source "ChessBase"]
[SourceQuality "1"]
[WhiteTeam "SV Empor Berlin"]
[BlackTeam "Karlsruher SF"]
[TimeControl "40/5400+30:1800+30"]

1. e4 {[%emt 0:00:00]} c6 {[%emt 0:00:00]} 2. d4 {[%emt 0:00:00]} d5 {[%emt 0:00:00]} 3. Nc3 {[%emt 0:00:17]} dxe4 {[%emt 0:00:09]} 4. Nxe4 {[%emt 0:00:37]} Nf6 {[%emt 0:00:38]} 5. Nxf6+ {[%emt 0:00:20]} exf6 {[%emt 0:00:23]} 6. Be3 {[%emt 0:00:43]} Bd6 {[%emt 0:02:06]} 7. Bd3 {[%emt 0:01:01]} Nd7 {[%emt 0:01:33]} 8. Nf3 {[%emt 0:01:02]} Nb6 {[%emt 0:00:52]} 9. O-O {[%emt 0:01:51]} Bg4 10. c4 {[%emt 0:01:50]} Bc7 {[%emt 0:08:22]} 11. Re1 {[%emt 0:00:52]} O-O {[%emt 0:00:40]} 12. h3 {[%emt 0:03:14]} Bh5 {[%emt 0:08:04]} 13. Rc1 {[%emt 0:02:58]} Re8 {[%emt 0:09:35]} 14. b3 {[%emt 0:07:29]} Qd7 {[%emt 0:02:08]} 15. Bb1 {[%emt 0:05:34]} Re7 {[%emt 0:04:51]} 16. Qd3 {[%emt 0:05:06]} Bg6 {[%emt 0:04:53]} 17. Qd2 {[%emt 0:00:37]} Be4 {[%emt 0:08:59]} 18. Bxe4 {[%emt 0:04:23]} Rxe4 {[%emt 0:00:06]} 19. Qd3 {[%emt 0:01:18]} Rae8 {[%emt 0:03:04]} 20. Bd2 {[%emt 0:02:49]} f5 {[%emt 0:06:19]} 21. Ng5 {[%emt 0:05:12]} Rxe1+ {[%emt 0:08:45]} 22. Rxe1 {[%emt 0:00:35]} Rxe1+ 23. Bxe1 {[%emt 0:00:10]} c5 {[%emt 0:02:34]} 24. d5 {[%emt 0:01:27]} Qe7 {[%emt 0:02:04]} 25. Nf3 {[%emt 0:01:29]} f4 {[%emt 0:03:39]} 26. Bc3 {[%emt 0:04:54]} f6 {[%emt 0:04:37]} 27. Kf1 {[%emt 0:02:20]} Nd7 {[%emt 0:01:26]} 28. Qe2 {[%emt 0:01:39]} Ne5 {[%emt 0:00:43]} 29. Nxe5 {[%emt 0:00:44]} Bxe5 {[%emt 0:01:00]} 30. Bd2 {[%emt 0:01:21] unterminated} Kf8 {[%emt 0:01:02]} 31. Qe4 {[%emt 0:02:09]} g5 {[%emt 0:01:30] unterminated} *

[Event "DVM U12 2019"]
[Site "Magedburg"]
[Date "2019.12.27"]
[Round "1"]
[White "Studzinski, Bruno"]
[Black "Malchereck, Zion"]
[Result "0-1"]
[ECO "B32"]
[WhiteElo "1244"]
[BlackElo "1543"]
[Annotator "NA RC"]
[PlyCount "98"]
[EventDate "2019.12.27"]
[EventType "team-tourn"]
[EventRounds "7"]
[EventCountry "GER"]
[SourceTitle "playchess.com"]
[Source "ChessBase"]
[SourceQuality "1"]
[WhiteTeam "Barnimer SF"]
[BlackTeam "Hamburger SK"]
[TimeControl "40/5400+30:1800+30"]

1. e4 {[%emt 0:00:00]} c5 {[%emt 0:00:00]} 2. Nf3 {[%emt 0:00:00]} Nc6 {[%emt 0:00:00]} 3. d4 {[%emt 0:00:22]} cxd4 {[%emt 0:00:11]} 4. Nxd4 {[%emt 0:00:10]} e5 {[%emt 0:00:13]} 5. Nf3 {[%emt 0:00:40]} Nf6 {[%emt 0:00:11]} 6. Nc3 {[%emt 0:00:12]} Bb4 {[%emt 0:00:07]} 7. Bc4 {[%emt 0:00:42]} O-O {[%emt 0:00:47]} 8. O-O Bxc3 9. bxc3 {[%emt 0:01:56]} Nxe4 {[%emt 0:00:41]} 10. Qd3 {[%emt 0:05:56]} Nf6 {[%emt 0:00:34]} 11. Qe2 {[%emt 0:05:25]} d5 {[%emt 0:01:58]} 12. Bb3 {[%emt 0:02:07]} Bg4 {[%emt 0:01:49]} 13. h3 {[%emt 0:01:40]} Bxf3 {[%emt 0:01:58]} 14. Qxf3 {[%emt 0:00:17]} Qd6 {[%emt 0:01:45]} 15. a4 {[%emt 0:02:33]} Rfe8 {[%emt 0:01:45]} 16. Ba3 {[%emt 0:02:48]} Qd7 {[%emt 0:00:26]} 17. Rad1 {[%emt 0:01:39]} Rad8 {[%emt 0:03:14]} 18. Rfe1 {[%emt 0:08:15]} e4 {[%emt 0:03:10]} 19. Qf4 {[%emt 0:03:44]} Qe6 {[%emt 0:05:03]} 20. f3 {[%emt 0:02:43]} Qe5 {[%emt 0:01:06]} 21. Qxe5 {[%emt 0:01:31]} Rxe5 {[%emt 0:00:07]} 22. fxe4 {[%emt 0:07:43]} Rxe4 {[%emt 0:03:53]} 23. Rxe4 {[%emt 0:00:59]} Nxe4 {[%emt 0:00:05]} 24. Rxd5 {[%emt 0:06:56]} Rxd5 {[%emt 0:00:37]} 25. Bxd5 {[%emt 0:00:15]} Nxc3 {[%emt 0:01:19]} 26. Bxc6 {[%emt 0:01:25]} bxc6 {[%emt 0:00:06]} 27. Bc5 {[%emt 0:00:59]} a6 {[%emt 0:01:14]} 28. a5 {[%emt 0:00:37]} f6 {[%emt 0:01:03]} 29. Kf1 {[%emt 0:00:38]} Kf7 {[%emt 0:00:20]} 30. Ke1 {[%emt 0:00:32]} Ke6 {[%emt 0:00:10]} 31. Bd4 {[%emt 0:01:20]} Ne4 {[%emt 0:02:28]} 32. Ke2 {[%emt 0:01:18]} Kd5 {[%emt 0:00:38]} 33. Kd3 {[%emt 0:01:17]} Nd6 {[%emt 0:00:45]} 34. g4 {[%emt 0:02:14]} c5 {[%emt 0:00:15]} 35. Be3 {[%emt 0:01:46]} Nc4 {[%emt 0:01:24]} 36. Bd2 {[%emt 0:01:10]} Nxd2 {[%emt 0:00:18]} 37. Kxd2 {[%emt 0:00:11]} Kd4 {[%emt 0:00:59]} 38. c3+ {[%emt 0:00:35]} Kc4 {[%emt 0:00:03]} 39. Kc2 {[%emt 0:00:49]} Kb5 {[%emt 0:01:35]} 40. Kd3 {[%emt 0:00:46]} Kxa5 {[%emt 0:00:33]} 41. Kc4 {[%emt 0:30:26]} Kb6 {[%emt 0:30:41]} 42. Kb3 {[%emt 0:00:34]} g6 {[%emt 0:00:31]} 43. Kc4 {[%emt 0:00:19]} Kc6 {[%emt 0:00:26]} 44. Kd3 {[%emt 0:00:49]} Kd5 {[%emt 0:01:17]} 45. c4+ {[%emt 0:00:38]} Ke5 {[%emt 0:00:05]} 46. Kc3 {[%emt 0:00:41]} f5 {[%emt 0:00:07]} 47. gxf5 {[%emt 0:00:06]} gxf5 {[%emt 0:00:00]} 48. Kb3 {[%emt 0:00:23]} f4 {[%emt 0:00:28]} 49. Ka4 {[%emt 0:00:09]} Kd4 {[%emt 0:00:03] normal} 0-1

[Event "DVM U12 2019"]
[Site "Magedburg"]
[Date "2019.12.27"]
[Round "1"]
[White "Tang, Shunjie Roger"]
[Black "Fruth, David"]
[Result "0-1"]
[ECO "A48"]
[WhiteElo "1133"]
[BlackElo "1473"]
[Annotator "NA RC"]
[PlyCount "104"]
[EventDate "2019.12.27"]
[EventType "team-tourn"]
[EventRounds "7"]
[EventCountry "GER"]
[SourceTitle "playchess.com"]
[Source "ChessBase"]
[SourceQuality "1"]
[WhiteTeam "SF Neureut"]
[BlackTeam "USV TU Dresden"]
[TimeControl "40/5400+30:1800+30"]

{[%evp 0,104,19,31,14,19,46,44,49,42,42,9,13,29,18,12,10,7,24,16,99,52,45,50,50,-30,-21,-7,-7,-14,-14,-152,-140,-149,-102,-323,-331,-331,-338,-363,-264,-283,-322,-296,-291,-273,-283,-367,-360,-400,-397,-400,-345,-370,-370,-379,-379,-398,-397,-408,-409,-427,-433,-469,-398,-394,-376,-435,-459,-475,-502,-535,-472,-510,-517,-555,-215,-713,-735,-740,-725,-814,-817,-903,-821,-841,-852,-852,-863,-863,-769,-780,-777,-794,-752,-841,-779,-853,-872,-1005,-753,-808,-692,-714,-658,-853,-883]} 1. d4 Nf6 2. Bf4 {[%emt 0:00:00]} g6 {[%emt 0:00:00]} 3. Nf3 {[%emt 0:00:24]} Bg7 {[%emt 0:00:00]} 4. e3 {[%emt 0:00:27]} O-O {[%emt 0:00:00]} 5. c4 {[%emt 0:00:12]} d6 {[%emt 0:00:00]} 6. Nc3 {[%emt 0:00:52]} Bf5 {[%emt 0:00:56]} 7. Be2 {[%emt 0:01:04]} Nc6 {[%emt 0:00:22]} 8. O-O {[%emt 0:00:52]} a5 {[%emt 0:02:48]} 9. a3 {[%emt 0:02:03]} Qd7 {[%emt 0:02:12]} 10. Rc1 {[%emt 0:06:48]} Nh5 {[%emt 0:01:25]} 11. Bg5 {[%emt 0:04:18]} h6 {[%emt 0:00:43]} 12. Bf4 {[%emt 0:03:12]} Nxf4 {[%emt 0:00:45]} 13. exf4 {[%emt 0:00:19]} Bg4 {[%emt 0:00:22]} 14. Nh4 {[%emt 0:02:08]} Bxe2 {[%emt 0:00:32]} 15. Qxe2 {[%emt 0:00:21]} Nxd4 {[%emt 0:00:09]} 16. Qd1 {[%emt 0:01:54]} Qe6 {[%emt 0:01:29]} 17. Nd5 {[%emt 0:03:46]} Ne2+ {[%emt 0:01:38]} 18. Kh1 {[%emt 0:01:16]} Nxc1 {[%emt 0:00:33]} 19. Qxc1 {[%emt 0:00:50]} Qd7 {[%emt 0:00:44]} 20. Rd1 {[%emt 0:02:47]} e6 {[%emt 0:00:58]} 21. Ne3 {[%emt 0:01:31]} Qe7 {[%emt 0:00:19]} 22. Nf3 {[%emt 0:01:54]} Qf6 {[%emt 0:00:18]} 23. b3 {[%emt 0:03:35]} Qxf4 {[%emt 0:01:07]} 24. Re1 {[%emt 0:04:03]} g5 {[%emt 0:00:33]} 25. h3 Bf6 {[%emt 0:01:43]} 26. Qd1 {[%emt 0:03:37]} Bc3 {[%emt 0:01:31]} 27. Rf1 {[%emt 0:01:48]} Bg7 {[%emt 0:00:52]} 28. Qc2 {[%emt 0:03:46]} h5 {[%emt 0:00:58]} 29. Qe2 {[%emt 0:04:14]} g4 {[%emt 0:01:16]} 30. hxg4 {[%emt 0:00:43]} hxg4 {[%emt 0:00:11]} 31. Nh2 {[%emt 0:01:06]} g3 {[%emt 0:01:05]} 32. fxg3 {[%emt 0:01:01]} Qxg3 {[%emt 0:00:11]} 33. Neg4 {[%emt 0:02:29]} Qxb3 {[%emt 0:01:19]} 34. Rf3 {[%emt 0:02:28]} Qb1+ {[%emt 0:01:23]} 35. Rf1 {[%emt 0:02:14]} Qb2 {[%emt 0:00:07]} 36. Qe3 {[%emt 0:02:22]} Qc3 {[%emt 0:00:15]} 37. Qg5 {[%emt 0:01:47]} f6 {[%emt 0:01:05]} 38. Nh6+ {[%emt 0:12:13]} Kh7 {[%emt 0:00:15]} 39. Qh4 {[%emt 0:07:01]} Bxh6 {[%emt 0:00:33]} 40. Rf3 {[%emt 0:00:31]} Qc1+ {[%emt 0:00:31]} 41. Nf1 {[%emt 0:30:44]} Qg5 {[%emt 0:30:16]} 42. Qe4+ {[%emt 0:01:21]} f5 {[%emt 0:00:10]} 43. Qxe6 {[%emt 0:00:52]} Rae8 {[%emt 0:00:42]} 44. Qd5 {[%emt 0:01:33]} Qh4+ {[%emt 0:00:59]} 45. Rh3 {[%emt 0:00:28]} Qe4 {[%emt 0:00:33]} 46. Qd2 {[%emt 0:01:05]} Rf6 {[%emt 0:01:15]} 47. Qf2 {[%emt 0:01:37]} Qe2 {[%emt 0:00:41]} 48. Qg1 {[%emt 0:05:14]} Rg6 {[%emt 0:00:34]} 49. Ng3 {[%emt 0:02:10]} Rxg3 {[%emt 0:01:07]} 50. Rxg3 {[%emt 0:00:57]} Qe1 {[%emt 0:00:19] unterminated} 51. Rf3 {[%emt 0:05:07]} Re3 {[%emt 0:00:47] unterminated} 52. Rxe3 {[%emt 0:01:05]} Qxg1+ {[%emt 0:00:07] unterminated} 0-1

[Event "DVM U12 2019"]
[Site "Magedburg"]
[Date "2019.12.27"]
[Round "2"]
[White "Nitsche, Nikolai"]
[Black "Hecht, Jonas Christian"]
[Result "0-1"]
[ECO "D00"]
[WhiteElo "1808"]
[BlackElo "1754"]
[Annotator "NA"]
[PlyCount "64"]
[EventDate "2019.12.27"]
[EventType "team-tourn"]
[EventRounds "7"]
[EventCountry "GER"]
[SourceTitle "playchess.com"]
[Source "ChessBase"]
[SourceQuality "1"]
[WhiteTeam "SV Empor Berlin"]
[BlackTeam "SC Kreuzberg"]
[TimeControl "40/5400+30:1800+30"]

1. d4 d5 2. Bf4 {[%emt 0:00:03]} c5 {[%emt 0:00:00]} 3. e3 {[%emt 0:00:07]} Nc6 {[%emt 0:00:00]} 4. c3 {[%emt 0:00:38]} Qb6 {[%emt 0:00:00]} 5. Qb3 {[%emt 0:00:06]} c4 {[%emt 0:00:05]} 6. Qc2 {[%emt 0:00:03]} Nf6 {[%emt 0:00:05]} 7. Nd2 {[%emt 0:02:45]} Nh5 {[%emt 0:01:25]} 8. Bg5 {[%emt 0:00:20]} h6 {[%emt 0:07:04]} 9. Bh4 {[%emt 0:00:14]} g5 {[%emt 0:00:55]} 10. Bg3 {[%emt 0:00:06]} Nxg3 {[%emt 0:00:06]} 11. hxg3 {[%emt 0:00:16]} Qa5 {[%emt 0:01:16]} 12. Ngf3 {[%emt 0:02:04]} Bg7 {[%emt 0:02:01]} 13. e4 {[%emt 0:00:52]} e6 {[%emt 0:01:39]} 14. e5 {[%emt 0:11:51]} Bd7 {[%emt 0:02:50]} 15. Nh2 {[%emt 0:03:56]} Ne7 {[%emt 0:01:51]} 16. Ng4 {[%emt 0:07:16]} Nf5 {[%emt 0:03:50]} 17. Nf3 {[%emt 0:10:36]} b5 {[%emt 0:14:59]} 18. Be2 {[%emt 0:34:28]} Bc6 {[%emt 0:04:37]} 19. Nf6+ {[%emt 0:02:50]} Kf8 {[%emt 0:05:31]} 20. g4 {[%emt 0:01:21]} Ne7 {[%emt 0:02:25]} 21. Nh5 {[%emt 0:07:50]} Ng6 {[%emt 0:08:37]} 22. g3 {[%emt 0:01:11]} Qd8 {[%emt 0:01:15]} 23. O-O {[%emt 0:00:33]} Rg8 {[%emt 0:05:14]} 24. Nh2 {[%emt 0:01:18]} Bh8 {[%emt 0:00:30]} 25. f4 {[%emt 0:02:29]} gxf4 {[%emt 0:04:05]} 26. gxf4 {[%emt 0:00:35]} Qh4 {[%emt 0:02:50]} 27. Kh1 {[%emt 0:00:23]} Qh3 {[%emt 0:08:24]} 28. f5 {[%emt 0:02:01]} Nh4 {[%emt 0:03:59]} 29. Nf4 {[%emt 0:00:32]} Qg3 {[%emt 0:00:45]} 30. fxe6 {[%emt 0:03:44]} Bxe5 {[%emt 0:00:59]} 31. Qh7 {[%emt 0:01:51]} Rg7 {[%emt 0:01:12]} 32. Qxh6 {[%emt 0:03:06]} Bxf4 {[%emt 0:00:19] normal} 0-1

[Event "DVM U12 2019"]
[Site "Magedburg"]
[Date "2019.12.27"]
[Round "2"]
[White "Bungarten, Jona"]
[Black "Kempe, Caius Emilian"]
[Result "1-0"]
[ECO "B21"]
[WhiteElo "1750"]
[BlackElo "1832"]
[Annotator "NA"]
[PlyCount "57"]
[EventDate "2019.12.27"]
[EventType "team-tourn"]
[EventRounds "7"]
[EventCountry "GER"]
[SourceTitle "playchess.com"]
[Source "ChessBase"]
[SourceQuality "1"]
[WhiteTeam "SF Brackel"]
[BlackTeam "USV TU Dresden"]
[TimeControl "40/5400+30:1800+30"]

1. e4 {[%emt 0:00:00]} c5 {[%emt 0:00:00]} 2. d4 {[%emt 0:00:00]} cxd4 {[%emt 0:00:00]} 3. c3 {[%emt 0:00:00]} dxc3 {[%emt 0:00:00]} 4. Nxc3 Nc6 {[%emt 0:00:00]} 5. Nf3 {[%emt 0:00:00]} e6 {[%emt 0:00:05]} 6. Bc4 {[%emt 0:00:07]} Qc7 {[%emt 0:01:19]} 7. Qe2 {[%emt 0:03:17]} Nf6 {[%emt 0:00:15]} 8. e5 {[%emt 0:01:03]} Ng4 {[%emt 0:07:09]} 9. Nb5 {[%emt 0:03:20]} Qb8 {[%emt 0:04:32]} 10. O-O {[%emt 0:02:52]} a6 {[%emt 0:04:34]} 11. Nd6+ {[%emt 0:03:13]} Bxd6 {[%emt 0:03:21]} 12. exd6 {[%emt 0:00:07]} Qxd6 {[%emt 0:01:06]} 13. Rd1 {[%emt 0:00:11]} Qc7 {[%emt 0:01:01]} 14. Qe4 {[%emt 0:04:52]} f5 {[%emt 0:07:15]} 15. Qe2 {[%emt 0:03:07]} O-O {[%emt 0:01:40]} 16. g3 {[%emt 0:01:10]} b5 {[%emt 0:02:28]} 17. Bf4 {[%emt 0:00:39]} Qa7 {[%emt 0:04:54]} 18. Bb3 {[%emt 0:00:52]} Kh8 {[%emt 0:04:33]} 19. Rac1 {[%emt 0:02:08]} Na5 {[%emt 0:13:28]} 20. Rc7 {[%emt 0:10:23]} Qb6 {[%emt 0:04:14]} 21. Qc2 {[%emt 0:02:19]} d5 {[%emt 0:06:39]} 22. Ne5 {[%emt 0:00:54]} Nf6 {[%emt 0:05:00]} 23. Be3 {[%emt 0:05:24]} Qb8 {[%emt 0:03:39]} 24. Qc5 {[%emt 0:01:25]} Kg8 {[%emt 0:01:18]} 25. Rxg7+ {[%emt 0:04:16]} Kxg7 {[%emt 0:01:03]} 26. Qe7+ {[%emt 0:00:06]} Kg8 {[%emt 0:01:28]} 27. Bh6 {[%emt 0:00:08]} Rf7 {[%emt 0:03:28]} 28. Qxf7+ {[%emt 0:00:12]} Kh8 {[%emt 0:00:06]} 29. Bg7# {[%emt 0:00:05] normal} 1-0

[Event "DVM U12 2019"]
[Site "Magedburg"]
[Date "2019.12.27"]
[Round "2"]
[White "Fuhrmann, Bahne"]
[Black "Kageler, Anton Paul"]
[Result "1-0"]
[ECO "B76"]
[WhiteElo "1603"]
[BlackElo "1777"]
[Annotator "NA"]
[PlyCount "37"]
[EventDate "2019.12.27"]
[EventType "team-tourn"]
[EventRounds "7"]
[EventCountry "GER"]
[SourceTitle "playchess.com"]
[Source "ChessBase"]
[SourceQuality "1"]
[WhiteTeam "Hamburger SK"]
[BlackTeam "SV Roter Turm Halle"]
[TimeControl "40/5400+30:1800+30"]

1. e4 {[%emt 0:00:00]} c5 {[%emt 0:00:00]} 2. Nf3 {[%emt 0:00:00]} d6 {[%emt 0:00:00]} 3. d4 {[%emt 0:00:00]} cxd4 {[%emt 0:00:00]} 4. Nxd4 {[%emt 0:00:00]} Nf6 {[%emt 0:00:00]} 5. Nc3 {[%emt 0:00:00]} g6 {[%emt 0:00:00]} 6. Be3 {[%emt 0:00:00]} Bg7 {[%emt 0:00:01]} 7. f3 {[%emt 0:00:00]} O-O {[%emt 0:00:05]} 8. Bc4 {[%emt 0:00:00]} Nc6 {[%emt 0:01:33]} 9. g4 {[%emt 0:00:17]} h5 {[%emt 0:01:31]} 10. h4 {[%emt 0:00:07]} Bd7 {[%emt 0:01:31]} 11. Qd2 {[%emt 0:00:27]} Rc8 {[%emt 0:00:24]} 12. O-O-O {[%emt 0:00:08]} a5 {[%emt 0:10:48]} 13. Bb3 {[%emt 0:09:16]} hxg4 {[%emt 0:07:23]} 14. h5 {[%emt 0:00:44]} Nxh5 {[%emt 0:02:04]} 15. Nxc6 {[%emt 0:08:45]} Rxc6 {[%emt 0:14:03]} 16. Bh6 {[%emt 0:02:45]} Bxh6 17. Qxh6 {[%emt 0:00:36]} Rxc3 {[%emt 0:01:43]} 18. Qxg6+ {[%emt 0:01:19]} Ng7 {[%emt 0:00:20]} 19. Qh7# {normal} 1-0

[Event "DVM U12 2019"]
[Site "Magedburg"]
[Date "2019.12.27"]
[Round "2"]
[White "Espig, Nils"]
[Black "Tomasjan, Samuel"]
[Result "0-1"]
[ECO "C10"]
[WhiteElo "1596"]
[BlackElo "1662"]
[Annotator "NA"]
[PlyCount "70"]
[EventDate "2019.12.27"]
[EventType "team-tourn"]
[EventRounds "7"]
[EventCountry "GER"]
[SourceTitle "playchess.com"]
[Source "ChessBase"]
[SourceQuality "1"]
[WhiteTeam "USV TU Dresden"]
[BlackTeam "SF Brackel"]
[TimeControl "40/5400+30:1800+30"]

1. e4 {[%emt 0:00:00]} e6 {[%emt 0:00:00]} 2. d4 {[%emt 0:00:00]} d5 {[%emt 0:00:00]} 3. Nc3 {[%emt 0:00:00]} dxe4 {[%emt 0:00:00]} 4. Nxe4 {[%emt 0:00:04]} Nd7 {[%emt 0:00:00]} 5. Nf3 {[%emt 0:01:37]} Ngf6 {[%emt 0:00:02]} 6. Bd3 {[%emt 0:00:36]} Be7 {[%emt 0:01:29]} 7. O-O {[%emt 0:01:21]} b6 {[%emt 0:00:37]} 8. Re1 {[%emt 0:01:40]} Bb7 {[%emt 0:00:28]} 9. c3 {[%emt 0:03:59]} O-O {[%emt 0:06:23]} 10. Bd2 {[%emt 0:04:47]} c5 {[%emt 0:02:22]} 11. dxc5 {[%emt 0:06:43]} Nxc5 {[%emt 0:05:00]} 12. Nxc5 {[%emt 0:00:43]} Bxc5 {[%emt 0:00:15]} 13. Qe2 {[%emt 0:05:40]} Qd7 {[%emt 0:07:16]} 14. Rad1 {[%emt 0:02:34]} Qd5 {[%emt 0:03:38]} 15. Bc4 {[%emt 0:12:40]} Qh5 {[%emt 0:02:10]} 16. Ne5 {[%emt 0:07:11]} Qh4 {[%emt 0:10:34]} 17. Bb3 {[%emt 0:10:15]} a5 {[%emt 0:11:35]} 18. Nf3 {[%emt 0:03:36]} Bxf3 {[%emt 0:01:16]} 19. Qxf3 {[%emt 0:00:15]} Ng4 {[%emt 0:01:25]} 20. Re4 {[%emt 0:06:53]} Qxf2+ {[%emt 0:01:29]} 21. Kh1 {[%emt 0:05:07]} Qxf3 {[%emt 0:00:10]} 22. gxf3 {[%emt 0:00:05]} Nf2+ {[%emt 0:00:04]} 23. Kg2 {[%emt 0:00:06]} Nxe4 {[%emt 0:01:23]} 24. fxe4 {[%emt 0:00:11]} Rad8 {[%emt 0:00:49]} 25. Kf3 {[%emt 0:01:43]} Rd3+ {[%emt 0:00:28]} 26. Ke2 {[%emt 0:00:23]} Rh3 {[%emt 0:00:14]} 27. Bf4 {[%emt 0:00:25]} Rh5 {[%emt 0:05:13]} 28. a3 {[%emt 0:05:15]} Be7 {[%emt 0:03:11]} 29. Rd7 {[%emt 0:00:47]} Rb5 {[%emt 0:02:55]} 30. Kd2 {[%emt 0:05:05]} Rd8 {[%emt 0:01:23]} 31. Rxd8+ {[%emt 0:00:19]} Bxd8 {[%emt 0:00:04]} 32. Kc2 {[%emt 0:00:08]} Rh5 {[%emt 0:00:26]} 33. Kd2 {[%emt 0:00:26]} Bg5 {[%emt 0:00:23]} 34. Bxg5 {[%emt 0:00:22]} Rxg5 {[%emt 0:00:07]} 35. h3 {[%emt 0:00:16]} Rh5 {[%emt 0:00:33] normal} 0-1

[Event "DVM U12 2019"]
[Site "Magedburg"]
[Date "2019.12.27"]
[Round "2"]
[White "Held, Momme Fredrik"]
[Black "Freude, Max"]
[Result "0-1"]
[ECO "A36"]
[WhiteElo "1573"]
[BlackElo "1809"]
[Annotator "NA"]
[PlyCount "76"]
[EventDate "2019.12.27"]
[EventType "team-tourn"]
[EventRounds "7"]
[EventCountry "GER"]
[SourceTitle "playchess.com"]
[Source "ChessBase"]
[SourceQuality "1"]
[WhiteTeam "SC Kreuzberg"]
[BlackTeam "SV Empor Berlin"]
[TimeControl "40/5400+30:1800+30"]

1. c4 {[%emt 0:00:00]} c5 {[%emt 0:00:00]} 2. g3 {[%emt 0:00:00]} g6 {[%emt 0:00:00]} 3. Bg2 {[%emt 0:00:00]} Bg7 {[%emt 0:00:00]} 4. Nc3 {[%emt 0:00:00]} Nc6 {[%emt 0:00:00]} 5. a3 {[%emt 0:00:02]} Nf6 {[%emt 0:02:10]} 6. Rb1 {[%emt 0:01:43]} O-O {[%emt 0:10:39]} 7. e4 {[%emt 0:07:58]} d6 {[%emt 0:00:21]} 8. Nge2 {[%emt 0:03:11]} Ne8 {[%emt 0:01:51]} 9. O-O {[%emt 0:03:40]} a5 {[%emt 0:05:49]} 10. d3 {[%emt 0:03:47]} Nc7 {[%emt 0:00:24]} 11. Be3 {[%emt 0:06:40]} Nd4 {[%emt 0:01:00]} 12. h3 {[%emt 0:06:20]} h6 {[%emt 0:01:52]} 13. f4 {[%emt 0:02:44]} f5 {[%emt 0:00:46]} 14. Kh2 {[%emt 0:01:52]} Kh7 {[%emt 0:00:59]} 15. Kg1 {[%emt 0:04:37]} Nce6 {[%emt 0:11:57]} 16. Kh2 {[%emt 0:15:41]} Nxe2 {[%emt 0:05:15]} 17. Qxe2 {[%emt 0:02:17]} Nd4 {[%emt 0:00:45]} 18. Qd1 {[%emt 0:00:15]} e6 {[%emt 0:01:06]} 19. Ne2 {[%emt 0:07:43]} Rb8 {[%emt 0:06:02]} 20. b4 {[%emt 0:01:23]} Qc7 {[%emt 0:02:26]} 21. b5 {[%emt 0:00:51]} b6 {[%emt 0:00:42]} 22. a4 {[%emt 0:00:26]} Bb7 {[%emt 0:01:11]} 23. Nxd4 {[%emt 0:04:50]} cxd4 {[%emt 0:00:25]} 24. Bg1 {[%emt 0:02:16]} fxe4 {[%emt 0:03:11]} 25. Re1 {[%emt 0:01:18]} e3 {[%emt 0:01:01]} 26. Qe2 {[%emt 0:01:57]} Bxg2 {[%emt 0:01:24]} 27. Qxg2 {[%emt 0:00:06]} Qb7 {[%emt 0:00:38]} 28. Re2 {[%emt 0:00:16]} Qxg2+ {[%emt 0:00:26]} 29. Kxg2 {[%emt 0:00:05]} e5 {[%emt 0:00:31]} 30. Bh2 {[%emt 0:00:05]} g5 {[%emt 0:08:25]} 31. Rf1 {[%emt 0:00:20]} Rbc8 {[%emt 0:01:52]} 32. Rc2 {[%emt 0:04:14]} e4 {[%emt 0:02:27]} 33. Rd1 {[%emt 0:00:39]} d5 {[%emt 0:02:40]} 34. dxe4 {[%emt 0:00:38]} dxc4 {[%emt 0:00:57]} 35. e5 {[%emt 0:00:10]} d3 {[%emt 0:01:41]} 36. Ra2 {[%emt 0:00:26]} e2 {[%emt 0:00:37]} 37. Re1 {[%emt 0:00:41]} c3 {[%emt 0:03:14]} 38. Raa1 {[%emt 0:00:05]} c2 {[%emt 0:03:07] normal} 0-1

[Event "DVM U12 2019"]
[Site "Magedburg"]
[Date "2019.12.27"]
[Round "2"]
[White "Malchereck, Zion"]
[Black "Adelmeyer, Nelly"]
[Result "1/2-1/2"]
[ECO "C01"]
[WhiteElo "1543"]
[BlackElo "1453"]
[Annotator "NA"]
[PlyCount "78"]
[EventDate "2019.12.27"]
[EventType "team-tourn"]
[EventRounds "7"]
[EventCountry "GER"]
[SourceTitle "playchess.com"]
[Source "ChessBase"]
[SourceQuality "1"]
[WhiteTeam "Hamburger SK"]
[BlackTeam "SV Roter Turm Halle"]
[TimeControl "40/5400+30:1800+30"]

1. e4 {[%emt 0:00:00]} e6 {[%emt 0:00:00]} 2. d4 {[%emt 0:00:00]} d5 {[%emt 0:00:00]} 3. exd5 {[%emt 0:00:19]} exd5 {[%emt 0:00:00]} 4. Nf3 {[%emt 0:00:35]} Nf6 {[%emt 0:00:27]} 5. Bd3 {[%emt 0:00:41]} Be7 {[%emt 0:00:17]} 6. O-O {[%emt 0:00:17]} O-O {[%emt 0:00:05]} 7. Bf4 {[%emt 0:00:31]} Bg4 {[%emt 0:01:14]} 8. h3 {[%emt 0:00:41]} Bh5 {[%emt 0:00:19]} 9. Nbd2 {[%emt 0:00:32]} c6 {[%emt 0:00:46]} 10. c3 {[%emt 0:00:46]} Re8 {[%emt 0:01:55]} 11. Re1 {[%emt 0:02:46]} Nbd7 {[%emt 0:02:00]} 12. Qc2 {[%emt 0:01:48]} Bg6 {[%emt 0:00:18]} 13. Bxg6 {[%emt 0:00:39]} fxg6 {[%emt 0:00:08]} 14. c4 {[%emt 0:00:12]} Nb6 {[%emt 0:03:29]} 15. c5 {[%emt 0:00:31]} Nbd7 {[%emt 0:00:28]} 16. Ng5 {[%emt 0:01:12]} Nf8 {[%emt 0:03:12]} 17. Ne6 {[%emt 0:04:11]} Nxe6 {[%emt 0:00:17]} 18. Rxe6 {[%emt 0:00:09]} Bf8 {[%emt 0:01:22]} 19. Rxe8 {[%emt 0:00:57]} Qxe8 {[%emt 0:00:08]} 20. Be5 {[%emt 0:00:32]} Qd7 {[%emt 0:01:20]} 21. f3 {[%emt 0:01:11]} Re8 {[%emt 0:01:49]} 22. Re1 Qf5 23. Qb3 {[%emt 0:03:53]} Bxc5 {[%emt 0:05:08]} 24. dxc5 {[%emt 0:02:45]} Rxe5 {[%emt 0:00:31]} 25. Rxe5 {[%emt 0:00:18]} Qxe5 {[%emt 0:00:05]} 26. Qxb7 {[%emt 0:00:24]} Qe3+ {[%emt 0:00:44]} 27. Kh2 {[%emt 0:01:12]} Qxd2 {[%emt 0:00:36]} 28. Qc8+ {[%emt 0:00:08]} Kf7 {[%emt 0:00:16]} 29. Qc7+ {[%emt 0:00:21]} Kf8 {[%emt 0:00:51]} 30. Qd6+ {[%emt 0:00:20]} Kf7 {[%emt 0:01:44]} 31. Qc7+ {[%emt 0:00:28]} Ke6 {[%emt 0:00:11]} 32. Qxc6+ {[%emt 0:00:02]} Kf5 {[%emt 0:00:25]} 33. Qc8+ {[%emt 0:01:21]} Kg5 {[%emt 0:02:39]} 34. c6 {[%emt 0:03:21]} d4 {[%emt 0:04:55]} 35. h4+ {[%emt 0:01:06]} Kh5 {[%emt 0:00:26]} 36. Kh3 {[%emt 0:00:57]} Qf4 {[%emt 0:04:49]} 37. g4+ {[%emt 0:02:00]} Kh6 {[%emt 0:00:04]} 38. g5+ {[%emt 0:00:32]} Kh5 {[%emt 0:00:06]} 39. gxf6 {[%emt 0:00:37]} Qxf3+ {[%emt 0:00:27] normal} 1/2-1/2